bitfinex/quotes_SOLUSD_20220105
["timestamp","ask_amount","ask_price","bid_price","bid_amount"]
[1641417811564,53.99440536,156.82,156.78,0.31879498]
[1641417811963,0.06,156.81,156.78,0.31879498]
[1641417812161,92.0,156.8,156.74,3.59699733]
[1641417812362,0.06,156.79,156.74,3.59699733]
[1641417812565,7.51,156.78,156.74,3.59699733]
[1641417812861,25.13598597,156.77,156.74,3.59699733]
[1641417813061,25.39598597,156.77,156.74,3.59699733]
[1641417813261,25.45598597,156.77,156.74,3.59699733]
[1641417813463,25.45598597,156.77,156.69,6.308387]
[1641417813662,9.8939,156.77,156.75,8.72265886]
[1641417813965,0.06,156.77,156.75,8.72265886]
[1641417814169,0.06,156.77,156.76,61.0]
[1641417814565,0.06,156.77,156.76,61.26]
[1641417814965,0.06,156.77,156.76,0.26]
[1641417815166,0.06,156.77,156.75,8.72265886]
[1641417815366,0.06,156.77,156.75,5.6682184]
[1641417818187,0.06,156.79,156.75,5.6682184]
[1641417818388,7.57,156.79,156.75,5.6682184]
[1641417818586,9.5731,156.77,156.75,5.6682184]
[1641417818787,9.5731,156.77,156.75,1.84e-05]
[1641417818988,9.8331,156.77,156.75,1.84e-05]
[1641417820891,53.06,156.76,156.75,1.84e-05]
[1641417821191,53.32,156.76,156.75,1.84e-05]
[1641417822997,92.0,156.75,156.66,3.59699733]
[1641417823194,7.57,156.74,156.66,3.59699733]
[1641417823395,9.5771,156.71,156.66,3.59699733]
[1641417823595,92.06,156.7,156.64,3.6087069]
[1641417823795,28.62182863,156.69,156.64,3.6087069]
[1641417823996,28.88182863,156.69,156.64,3.6087069]
[1641417824704,0.06,156.68,156.61,3.6087069]
[1641417824897,9.5796,156.67,156.61,3.6087069]
[1641417825097,23.83215244,156.66,156.61,3.6087069]
[1641417825598,7.57,156.65,156.61,3.6087069]
[1641417825796,7.57,156.65,156.61,6.9e-06]
[1641417825797,70.0,156.64,156.61,6.9e-06]
[1641417826006,17.092,156.63,156.59,6.9e-06]
[1641417826499,17.352,156.63,156.59,6.9e-06]
[1641417826898,39.91833411,156.63,156.59,6.9e-06]
[1641417827101,0.06,156.62,156.59,6.9e-06]
[1641417827298,9.6431,156.62,156.54,6.9e-06]
[1641417828099,9.9031,156.62,156.54,6.9e-06]
[1641417828298,36.7809233,156.62,156.52,6.9e-06]
[1641417828700,7.51,156.61,156.52,6.9e-06]
[1641417829098,9.5856,156.58,156.52,6.9e-06]
[1641417829601,29.13898257,156.57,156.52,6.9e-06]
[1641417829799,0.06,156.56,156.51,6.9e-06]
[1641417830801,0.06,156.56,156.48,6.9e-06]
[1641417831200,9.6467,156.56,156.48,6.9e-06]
[1641417831602,9.9067,156.56,156.48,6.9e-06]
[1641417832213,17.0974,156.55,156.48,6.9e-06]
[1641417832610,7.51,156.55,156.49,1.47315897]
[1641417832813,7.51,156.55,156.5,2.54061556]
[1641417833012,25.09045411,156.54,156.5,2.54061556]
[1641417833616,25.09045411,156.54,156.5,2.04061556]
[1641417834018,25.35045411,156.54,156.5,2.04062246]
[1641417834218,0.26,156.54,156.5,2.04062246]
[1641417834418,17.0959,156.57,156.5,2.04062246]
[1641417834622,7.51,156.57,156.5,2.04062246]
[1641417834822,7.51,156.57,156.5,2.04061556]
[1641417835227,24.10693135,156.56,156.5,2.04061556]
[1641417835448,9.587,156.55,156.5,2.04061556]
[1641417835643,9.587,156.55,156.49,6.9e-06]
[1641417835845,9.847,156.55,156.5,6.9e-06]
[1641417836444,0.06,156.54,156.5,6.9e-06]
[1641417836644,0.06,156.54,156.47,2.49002657]
[1641417837046,29.35353801,156.54,156.47,2.49002657]
[1641417837448,29.61353801,156.54,156.47,2.49001967]
[1641417838046,29.35353801,156.54,156.47,2.49001967]
[1641417838447,29.35353801,156.54,156.47,2.49002657]
[1641417838647,29.35353801,156.54,156.47,2.75002657]
[1641417839249,29.35353801,156.54,156.47,2.49002657]
[1641417839449,0.06,156.54,156.5,6.9e-06]
[1641417840250,0.06,156.54,156.51,6.9e-06]
[1641417840450,0.06,156.54,156.52,3.03219995]
[1641417840649,7.51,156.62,156.53,94.89836219]
[1641417840650,39.20516004,156.62,156.53,94.89836219]
[1641417840851,39.20516004,156.62,156.53,101.79036219]
[1641417841050,39.20516004,156.62,156.53,102.05036909]
[1641417841452,39.20516004,156.62,156.53,9.79036909]
[1641417841650,0.06,156.61,156.53,2.89836909]
[1641417841851,9.6433,156.61,156.54,6.9e-06]
[1641417842652,9.6433,156.61,156.53,2.89836219]
[1641417843049,9.9033,156.61,156.53,2.89836219]
[1641417844052,9.9033,156.61,156.53,2.89836909]
[1641417844251,9.6433,156.61,156.53,2.89836909]
[1641417844653,0.06,156.61,156.53,3.15836909]
[1641417845851,0.06,156.61,156.54,6.9e-06]
[1641417847952,9.6429,156.61,156.54,6.9e-06]
[1641417848352,9.9029,156.61,156.53,2.89836219]
[1641417849957,17.4129,156.61,156.53,2.89836219]
[1641417852160,17.4129,156.61,156.53,2.89836909]
[1641417853762,17.4129,156.61,156.53,6.9e-06]
[1641417854461,1.47315897,156.6,156.53,6.9e-06]
[1641417854662,7.51,156.59,156.53,6.9e-06]
[1641417854861,9.5859,156.56,156.53,6.9e-06]
[1641417855260,7.51,156.59,156.53,6.9e-06]
[1641417855462,7.77,156.59,156.53,6.9e-06]
[1641417855662,7.77,156.59,156.49,2.84515865]
[1641417855860,9.5851,156.57,156.49,2.84515865]
[1641417856063,9.8451,156.57,156.49,2.84515865]
[1641417856261,27.50598675,156.56,156.49,2.84515865]
[1641417856463,27.50598675,156.56,156.49,6.9e-06]
[1641417856662,27.76598675,156.56,156.51,6.9e-06]
[1641417857063,0.26,156.56,156.51,6.9e-06]
[1641417857463,7.77,156.59,156.51,6.9e-06]
[1641417857664,7.77,156.59,156.49,2.34780948]
[1641417857863,9.5865,156.55,156.49,2.34780948]
[1641417858063,36.65049083,156.55,156.49,2.34780948]
[1641417858872,36.39049083,156.55,156.49,2.34780948]
[1641417859071,26.80399083,156.55,156.49,2.34780948]
[1641417859269,17.0954,156.57,156.49,2.60780948]
[1641417859471,7.77,156.57,156.49,2.34780948]
[1641417859669,7.77,156.57,156.51,6.9e-06]
[1641417859670,7.51,156.57,156.51,6.9e-06]
[1641417859872,31.9476,156.63,156.51,6.9e-06]
[1641417860075,9.5836,156.6,156.51,6.9e-06]
[1641417860473,9.5836,156.6,156.52,6.9e-06]
[1641417860975,7.51,156.62,156.52,6.9e-06]
[1641417861173,7.51,156.62,156.52,2.61194609]
[1641417861377,7.51,156.62,156.52,12.19384609]
[1641417861676,29.6871263,156.61,156.52,19.83684609]
[1641417862074,29.6871263,156.61,156.54,6.9e-06]
[1641417862677,7.51,156.64,156.54,6.9e-06]
[1641417862877,9.582,156.62,156.54,6.9e-06]
[1641417863078,9.842,156.62,156.54,6.9e-06]
[1641417863680,9.842,156.62,156.53,6.9e-06]
[1641417864682,25.98526293,156.61,156.53,6.9e-06]
[1641417865284,9.842,156.62,156.53,6.9e-06]
[1641417865484,9.582,156.62,156.53,6.9e-06]
[1641417865685,9.582,156.62,156.54,6.9e-06]
[1641417866283,9.842,156.62,156.54,6.9e-06]
[1641417867485,10.082,156.62,156.54,6.9e-06]
[1641417867684,9.582,156.62,156.53,6.9e-06]
[1641417868084,10.082,156.62,156.53,6.9e-06]
[1641417868486,9.582,156.62,156.53,6.9e-06]
[1641417868688,7.51,156.66,156.53,0.0600069]
[1641417868886,7.51,156.66,156.53,53.2925069]
[1641417869106,7.51,156.66,156.54,6.9e-06]
[1641417869306,7.51,156.7,156.54,6.9e-06]
[1641417869510,32.54841164,156.7,156.61,2.62684486]
[1641417869911,9.5781,156.68,156.61,2.62684486]
[1641417870116,7.51,156.68,156.61,2.62684486]
[1641417870612,7.77,156.68,156.61,2.62684486]
[1641417870813,28.49185844,156.67,156.61,2.62684486]
[1641417871713,28.49185844,156.67,156.56,6.9e-06]
[1641417871915,38.33095844,156.67,156.57,6.9e-06]
[1641417872113,9.8391,156.67,156.57,6.9e-06]
[1641417872313,11.81225897,156.67,156.57,6.9e-06]
[1641417872914,10.3391,156.67,156.55,2.9221084]
[1641417873114,24.39283457,156.66,156.55,12.5030084]
[1641417873513,24.65283457,156.66,156.55,12.5030084]
[1641417873719,24.65283457,156.66,156.55,12.7630084]
[1641417873915,7.51,156.65,156.55,12.7630084]
[1641417874115,7.77,156.65,156.55,12.7630084]
[1641417874515,32.41607328,156.63,156.55,12.7630084]
[1641417874916,32.67607328,156.63,156.55,12.7630084]
[1641417875823,32.67607328,156.63,156.55,3.1821084]
[1641417876016,32.67607328,156.63,156.55,2.9221084]
[1641417877419,9.8415,156.63,156.55,2.9221084]
[1641417878419,30.07257748,156.62,156.55,2.9221084]
[1641417878624,39.91427748,156.62,156.55,2.9221084]
[1641417879325,9.8417,156.62,156.55,2.9221084]
[1641417879525,0.5,156.67,156.55,3.2421084]
[1641417879526,7.51,156.67,156.55,3.2421084]
[1641417879726,3.60207277,156.72,156.55,44.7996084]
[1641417879727,9.5796,156.66,156.55,44.7996084]
[1641417879925,7.51,156.7,156.55,44.7996084]
[1641417880226,7.51,156.7,156.55,46.27276737]
[1641417880428,28.15915799,156.69,156.56,6.9e-06]
[1641417880829,9.5784,156.68,156.6,9.5778]
[1641417881031,9.5784,156.68,156.61,2.74679241]
[1641417881231,9.8384,156.68,156.61,2.74679241]
[1641417882538,9.5784,156.68,156.61,2.74679241]
[1641417882733,31.507,156.72,156.61,3.00679241]
[1641417882933,17.086,156.72,156.61,3.06679241]
[1641417883335,7.51,156.72,156.61,3.06679241]
[1641417883536,7.51,156.72,156.63,0.06]
[1641417883738,3.60207277,156.75,156.64,3.01282278]
[1641417883938,7.51,156.76,156.64,3.01282278]
[1641417883939,9.5737,156.76,156.68,2.36476662]
[1641417884339,11.11207277,156.78,156.68,2.36476662]
[1641417884537,11.11207277,156.78,156.68,2.62476662]
[1641417884938,11.11207277,156.78,156.68,11.93746662]
[1641417885140,7.51,156.78,156.68,12.19746662]
[1641417885541,7.51,156.78,156.68,11.93746662]
[1641417885741,7.51,156.78,156.68,2.36476662]
[1641417885939,7.77,156.78,156.68,2.36476662]
[1641417886139,17.3422,156.78,156.68,2.36476662]
[1641417887141,17.0822,156.78,156.68,2.62476662]
[1641417887344,17.0822,156.78,156.68,12.19766662]
[1641417887641,7.51,156.78,156.68,12.19766662]
[1641417888266,7.51,156.78,156.69,18.6465823]
[1641417888469,7.51,156.78,156.71,9.5711]
[1641417888667,7.51,156.78,156.72,2.1999347]
[1641417889070,7.51,156.78,156.72,2.4599347]
[1641417891080,7.51,156.78,156.72,12.0306347]
[1641417891879,7.51,156.78,156.72,2.1999347]
[1641417892078,7.77,156.78,156.72,2.1999347]
[1641417892482,7.77,156.78,156.66,78.4050069]
[1641417892884,22.43466262,156.77,156.66,78.665]
[1641417893078,32.00766262,156.77,156.68,9.5731]
[1641417893278,32.00766262,156.77,156.68,9.8331]
[1641417893478,32.26766262,156.77,156.68,12.56683703]
[1641417893680,32.26766262,156.77,156.65,6.9e-06]
[1641417893978,32.26766262,156.77,156.61,7.51]
[1641417893979,32.26766262,156.77,156.63,6.9e-06]
[1641417894681,32.26766262,156.77,156.63,2.73222796]
[1641417894978,32.26766262,156.77,156.63,0.26]
[1641417895179,32.26766262,156.77,156.64,2.96901776]
[1641417895380,32.00766262,156.77,156.64,2.96901776]
[1641417895679,32.00766262,156.77,156.64,3.22901776]
[1641417896082,32.00766262,156.77,156.66,9.5738]
[1641417896482,32.00766262,156.77,156.66,9.8338]
[1641417896883,32.26766262,156.77,156.66,9.8338]
[1641417897783,32.26766262,156.77,156.65,2.38915511]
[1641417899182,7.51,156.76,156.65,2.38915511]
[1641417899387,8.01,156.76,156.65,2.38915511]
[1641417899683,9.74315897,156.76,156.65,2.38915511]
[1641417900886,9.5769,156.7,156.65,2.38915511]
[1641417901286,23.88413422,156.71,156.65,2.38915511]
[1641417901488,24.14413422,156.71,156.65,2.38915511]
[1641417902088,33.72043422,156.71,156.65,2.38915511]
[1641417902286,33.46043422,156.71,156.65,2.38915511]
[1641417902487,23.88413422,156.71,156.65,2.38915511]
[1641417903087,7.51,156.73,156.65,11.96435511]
[1641417903387,7.51,156.73,156.65,12.22435511]
[1641417904090,7.51,156.76,156.65,32.32820285]
[1641417904290,17.0834,156.76,156.65,11.96435511]
[1641417904689,17.0834,156.76,156.65,2.38915511]
[1641417905490,17.3434,156.76,156.65,2.38915511]
[1641417906291,17.3434,156.76,156.63,9.5759]
[1641417906491,19.31655897,156.76,156.61,9.577]
[1641417906692,43.96635897,156.76,156.61,9.577]
[1641417906893,43.96635897,156.76,156.56,80.2055]
[1641417907095,9.5781,156.68,156.56,80.2055]
[1641417907296,40.08871534,156.68,156.56,80.2055]
[1641417907496,40.08871534,156.68,156.57,2.24714513]
[1641417907695,40.08871534,156.68,156.6,9.5779]
[1641417907894,40.34871534,156.68,156.57,2.24713823]
[1641417908095,40.08871534,156.68,156.57,2.24713823]
[1641417908494,7.51,156.67,156.55,73.3462]
[1641417908696,9.5812,156.63,156.53,6.9e-06]
[1641417909096,9.8412,156.63,156.53,6.9e-06]
[1641417909598,9.8412,156.63,156.52,2.87612929]
[1641417909796,28.97834566,156.62,156.55,9.5807]
[1641417909996,29.23834566,156.62,156.55,12.75294414]
[1641417910198,29.23834566,156.62,156.55,12.49294414]
[1641417911301,9.5812,156.63,156.55,12.49294414]
[1641417911498,9.5812,156.63,156.55,12.75294414]
[1641417912302,9.5805,156.64,156.55,12.75294414]
[1641417912901,9.0805,156.64,156.55,12.75294414]
[1641417913902,40.8186958,156.65,156.56,9.8299]
[1641417914133,41.0786958,156.65,156.56,10.0899]
[1641417916536,17.3499,156.65,156.56,10.0899]
[1641417916737,7.51,156.65,156.56,10.0899]
[1641417916936,7.51,156.69,156.56,10.1499]
[1641417917139,7.51,156.71,156.56,35.64375897]
[1641417917336,7.51,156.74,156.58,2.6731668]
[1641417917537,31.52872032,156.73,156.66,2.85516147]
[1641417918236,41.10412032,156.73,156.59,44.57009818]
[1641417918438,9.8354,156.73,156.66,0.25]
[1641417918637,9.8354,156.73,156.61,0.25]
[1641417918838,9.8354,156.73,156.65,9.575]
[1641417919239,9.8354,156.73,156.66,2.55953161]
[1641417919438,27.81258208,156.72,156.66,2.55953161]
[1641417919643,27.81258208,156.72,156.66,0.25]
[1641417920639,37.38818208,156.72,156.66,0.25]
[1641417920840,37.38818208,156.72,156.67,2.51758017]
[1641417921240,37.64818208,156.72,156.67,2.51758017]
[1641417921643,37.64818208,156.72,156.63,9.5759]
[1641417921842,45.15818208,156.72,156.58,31.9219]
[1641417922043,45.15818208,156.72,156.57,72.9814069]
[1641417922245,45.65818208,156.72,156.57,72.9814069]
[1641417922443,45.65818208,156.72,156.58,3.61077093]
[1641417922643,45.65818208,156.72,156.59,17.80014886]
[1641417922644,45.15818208,156.72,156.59,17.80014886]
[1641417923043,45.15818208,156.72,156.59,0.26]
[1641417923445,45.15818208,156.72,156.58,85.14503546]
[1641417923644,45.15818208,156.72,156.58,81.53426453]
[1641417923844,45.65818208,156.72,156.58,81.27426453]
[1641417924043,45.65818208,156.72,156.59,0.25]
[1641417925846,45.65818208,156.72,156.6,9.5777]
[1641417926048,45.65818208,156.72,156.61,2.70416232]
[1641417926847,45.65818208,156.72,156.6,9.5777]
[1641417927449,45.65818208,156.72,156.59,9.579]
[1641417927849,45.65818208,156.72,156.59,12.4973527]
[1641417929549,45.65818208,156.72,156.59,12.2373527]
[1641417929750,47.13134105,156.72,156.6,0.06]
[1641417929951,47.13134105,156.72,156.6,0.31]
[1641417930349,46.87134105,156.72,156.6,0.31]
[1641417931150,1.68606011,156.7,156.6,2.11544786]
[1641417931351,9.69606011,156.7,156.6,2.11544786]
[1641417931548,9.5788,156.67,156.6,2.11544786]
[1641417931950,9.5788,156.67,156.6,0.31]
[1641417932349,9.8388,156.67,156.6,0.31]
[1641417932752,9.8388,156.67,156.6,9.8882]
[1641417932951,9.8388,156.67,156.6,11.69364786]
[1641417933152,9.8388,156.67,156.6,11.95364786]
[1641417933749,9.8388,156.67,156.62,2.91018763]
[1641417934951,0.26,156.67,156.62,2.91018763]
[1641417935350,9.8378,156.68,156.62,2.91018763]
[1641417936151,9.8378,156.68,156.63,0.25]
[1641417936552,9.8378,156.68,156.61,1.80544786]
[1641417936752,7.51,156.67,156.61,1.80544786]
[1641417937152,9.5806,156.64,156.61,1.80544786]
[1641417937553,28.3590409,156.63,156.58,1.80544786]
[1641417937953,28.6190409,156.63,156.58,1.80544786]
[1641417938753,9.5821,156.61,156.56,1.80544786]
[1641417939156,9.8421,156.61,156.56,1.80544786]
[1641417939355,17.8521,156.61,156.56,1.80544786]
[1641417939555,17.3521,156.61,156.56,4.786e-05]
[1641417939753,1.47315897,156.6,156.56,4.786e-05]
[1641417940053,9.586,156.58,156.56,4.786e-05]
[1641417940256,2.23315897,156.6,156.56,4.786e-05]
[1641417940257,7.51,156.57,156.56,4.786e-05]
[1641417940858,17.0946,156.57,156.56,4.786e-05]
[1641417941258,17.0946,156.57,156.51,0.25]
[1641417942357,7.51,156.57,156.51,0.25]
[1641417944159,17.3546,156.57,156.51,0.25]
[1641417946362,17.3546,156.57,156.49,6.9e-06]
[1641417947159,17.8546,156.57,156.49,6.9e-06]
[1641417947559,17.3546,156.57,156.47,6.87767782]
[1641417947985,17.3546,156.57,156.47,4.58223799]
[1641417948189,17.8546,156.57,156.47,4.33223799]
[1641417948383,19.32775897,156.57,156.47,4.33223799]
[1641417948586,19.32775897,156.57,156.48,3.6131994]
[1641417949086,31.66,156.56,156.48,3.6131994]
[1641417949286,9.59,156.52,156.48,3.6131994]
[1641417949485,33.50443194,156.51,156.47,0.71903859]
[1641417949884,33.76443194,156.51,156.47,0.71903859]
[1641417951887,9.5898,156.49,156.47,0.71903859]
[1641417952289,9.8498,156.49,156.47,0.71903859]
[1641417953289,9.5898,156.49,156.47,0.71903859]
[1641417953490,9.8498,156.49,156.47,0.71903859]
[1641417953889,28.88245724,156.48,156.47,0.71903859]
[1641417954089,29.14245724,156.48,156.47,0.71903859]
[1641417954689,38.73275724,156.48,156.47,0.71903859]
[1641417956794,46.24275724,156.48,156.47,0.71903859]
[1641417958394,46.24275724,156.48,156.4,6.9e-06]
[1641417958395,9.5943,156.44,156.4,6.9e-06]
[1641417958595,17.3643,156.44,156.4,6.9e-06]
[1641417959397,17.3643,156.44,156.39,6.9e-06]
[1641417959996,7.77,156.44,156.39,0.25]
[1641417960199,7.51,156.44,156.39,0.25]
[1641417960799,7.51,156.44,156.41,6.9e-06]
[1641417960997,7.51,156.44,156.42,6.06439992]
[1641417961798,7.51,156.44,156.43,28.25]
[1641417962001,7.51,156.44,156.4,6.9e-06]
[1641417962501,7.77,156.44,156.4,6.9e-06]
[1641417962700,7.77,156.44,156.39,3.61494794]
[1641417963100,17.3627,156.44,156.39,3.61494794]
[1641417963303,24.9538379,156.43,156.39,3.61494794]
[1641417963501,25.2138379,156.43,156.39,3.61494104]
[1641417964501,7.51,156.44,156.39,6.04372537]
[1641417964699,7.51,156.44,156.39,2.42878433]
[1641417964900,7.77,156.44,156.39,2.42878433]
[1641417965102,7.51,156.44,156.39,2.42878433]
[1641417965703,0.71903859,156.47,156.4,0.25]
[1641417965704,10.31043859,156.47,156.4,0.25]
[1641417966502,10.31043859,156.47,156.39,2.42878433]
[1641417966702,10.31043859,156.47,156.41,3.61468414]
[1641417966901,10.57043859,156.47,156.41,3.61468414]
[1641417967303,30.88423867,156.46,156.41,3.61468414]
[1641417967506,9.5925,156.45,156.41,3.61468414]
[1641417967705,9.5925,156.45,156.39,6.04346847]
[1641417968004,9.8525,156.45,156.39,6.04346847]
[1641417968405,9.8525,156.45,156.39,2.42878433]
[1641417969608,38.39423867,156.46,156.39,2.42878433]
[1641417969609,7.51,156.46,156.4,0.25]
[1641417969808,10.31043859,156.47,156.4,0.25]
[1641417970609,10.31043859,156.47,156.39,2.42878433]
[1641417970811,23.23353807,156.46,156.4,0.25]
[1641417971014,32.82503807,156.46,156.39,2.42878433]
[1641417971409,33.08503807,156.46,156.4,3.6145471]
[1641417972110,33.08503807,156.46,156.39,6.04332453]
[1641417972909,33.08503807,156.46,156.4,3.6145402]
[1641417973108,9.8515,156.46,156.4,3.6145402]
[1641417973308,0.71903859,156.47,156.4,9.5895402]
[1641417973514,0.71903859,156.47,156.42,2.74511659]
[1641417975111,0.71903859,156.47,156.43,0.25]
[1641417976913,0.71903859,156.47,156.43,9.8388]
[1641417978313,0.71903859,156.47,156.42,2.74512349]
[1641417979515,0.71903859,156.47,156.42,6.35951517]
[1641417979714,0.71903859,156.47,156.43,0.25]
[1641417980115,0.71903859,156.47,156.42,6.35951517]
[1641417980316,0.71903859,156.47,156.42,12.33431659]
[1641417980518,0.71903859,156.47,156.42,12.59431659]
[1641417981016,0.71903859,156.47,156.43,1.47315897]
[1641417981218,0.71903859,156.47,156.43,7.36815897]
[1641417981417,0.71903859,156.47,156.45,2.47588888]
[1641417981641,0.71903859,156.47,156.46,65.28219997]
[1641417983219,0.71903859,156.47,156.46,65.03219997]
[1641417983519,0.71903859,156.47,156.46,74.61909997]
[1641417984219,0.71903859,156.47,156.46,77.65129992]
[1641417985620,0.71903859,156.47,156.46,68.06439992]
[1641417985822,0.71903859,156.47,156.46,6.06439992]
[1641417987022,0.71903859,156.47,156.46,8.97961904]
[1641417987625,0.71903859,156.47,156.46,61.97961904]
[1641417987823,0.71903859,156.47,156.46,62.22961904]
[1641417988024,0.71903859,156.47,156.46,59.31439992]
[1641417988227,0.71903859,156.47,156.46,59.06439992]
[1641417988424,0.71903859,156.47,156.46,6.06439992]
[1641417989152,0.71903859,156.47,156.43,2.27836258]
[1641417989725,0.71903859,156.47,156.43,2.27835568]
[1641417991631,0.71903859,156.47,156.44,0.25]
[1641417992932,0.71903859,156.47,156.45,6.06439992]
[1641417993339,7.51,156.52,156.47,91.0]
[1641417993533,7.51,156.58,156.48,16.69628344]
[1641417993933,7.51,156.58,156.48,16.95628344]
[1641417994134,7.51,156.58,156.49,2.92433158]
[1641417994334,3.60207277,156.6,156.5,0.06]
[1641417994536,3.60207277,156.6,156.5,38.7926]
[1641417994733,7.51,156.62,156.5,38.7926]
[1641417994934,7.51,156.62,156.51,2.78206657]
[1641417995135,7.51,156.62,156.52,0.31]
[1641417995335,7.51,156.62,156.53,2.40134471]
[1641417995735,7.51,156.62,156.54,9.5819]
[1641417995937,7.51,156.62,156.54,9.8319]
[1641417996138,17.0919,156.62,156.54,9.5819]
[1641417996341,17.0919,156.62,156.53,2.40134471]
[1641417996539,17.3519,156.62,156.47,160.1868]
[1641417996766,17.3519,156.62,156.47,152.6768]
[1641417996966,18.82505897,156.62,156.5,6.9e-06]
[1641417997268,27.67277212,156.61,156.5,6.9e-06]
[1641417997466,7.51,156.6,156.5,6.9e-06]
[1641417997667,9.5863,156.55,156.5,6.9e-06]
[1641417997866,9.5863,156.55,156.46,6.9e-06]
[1641417997867,23.0753,156.55,156.46,6.9e-06]
[1641417998066,1.47315897,156.54,156.46,6.9e-06]
[1641417998266,7.51,156.53,156.46,6.9e-06]
[1641417998468,7.77,156.53,156.46,6.9e-06]
[1641417998869,40.28635579,156.5,156.41,12.04660641]
[1641417999071,40.54635579,156.5,156.41,12.04660641]
[1641417999267,40.54635579,156.5,156.41,2.45650641]
[1641417999469,7.51,156.49,156.41,2.45650641]
[1641417999871,7.77,156.49,156.41,2.45650641]
[1641418000070,7.77,156.49,156.42,3.6145402]
[1641418000872,35.14748018,156.46,156.42,3.6145402]
[1641418001070,35.40748018,156.46,156.42,3.6145402]
[1641418001670,35.40748018,156.46,156.39,3.6145402]
[1641418002471,35.40748018,156.46,156.4,0.25]
[1641418002973,35.40748018,156.46,156.41,2.60399948]
[1641418003171,9.8519,156.46,156.41,2.60399948]
[1641418004273,29.06259905,156.45,156.41,2.60399948]
[1641418004473,38.65489905,156.45,156.38,14.2710903]
[1641418004673,38.91489905,156.45,156.39,0.25]
[1641418004875,38.91489905,156.45,156.38,4.6789903]
[1641418005073,38.91489905,156.45,156.38,4.6789834]
[1641418006577,38.91489905,156.45,156.39,0.25]
[1641418008177,38.91489905,156.45,156.38,4.6789834]
[1641418008578,38.91489905,156.45,156.39,0.25]
[1641418008979,38.91489905,156.45,156.38,4.6789834]
[1641418010388,7.51,156.44,156.38,4.6789834]
[1641418010587,9.5949,156.42,156.38,4.6789834]
[1641418010787,40.76240295,156.42,156.38,4.6789834]
[1641418010986,41.02240295,156.42,156.38,4.6789834]
[1641418011387,7.51,156.44,156.38,7.57089396]
[1641418012391,26.40307417,156.43,156.38,4.6789834]
[1641418012793,26.66307417,156.43,156.38,4.6789834]
[1641418012993,34.17307417,156.43,156.38,4.6789834]
[1641418013793,43.76727417,156.43,156.38,4.6789834]
[1641418016194,43.76727417,156.43,156.38,6.93755591]
[1641418016898,43.76727417,156.43,156.38,4.6789834]
[1641418019797,43.50727417,156.43,156.38,4.6789834]
[1641418019996,17.1042,156.43,156.39,2.34340426]
[1641418020198,7.51,156.43,156.39,2.34340426]
[1641418020399,7.51,156.46,156.39,2.34340426]
[1641418021004,39.17722699,156.46,156.4,0.25]
[1641418021200,39.17722699,156.46,156.39,2.34340426]
[1641418021399,39.43722699,156.46,156.39,2.34340426]
[1641418022199,39.43722699,156.46,156.39,1.84340426]
[1641418022999,39.17722699,156.46,156.39,11.43480426]
[1641418023204,17.1011,156.49,156.4,0.25]
[1641418023400,7.51,156.49,156.4,0.25]
[1641418024202,25.08757068,156.48,156.4,0.25]
[1641418024708,25.34757068,156.48,156.4,9.8402]
[1641418024907,25.34757068,156.48,156.41,3.6149425]
[1641418025104,25.34757068,156.48,156.42,2.59318022]
[1641418025908,25.34757068,156.48,156.39,6.9e-06]
[1641418026110,7.51,156.47,156.38,4.6789903]
[1641418026311,8.98315897,156.47,156.38,4.6789903]
[1641418026511,9.24315897,156.47,156.38,4.6789903]
[1641418026710,7.77,156.47,156.38,4.6789903]
[1641418026910,7.77,156.47,156.39,2.59240909]
[1641418027110,7.77,156.47,156.38,4.6789834]
[1641418027414,30.92537941,156.43,156.38,4.6789834]
[1641418027812,31.18537941,156.43,156.38,4.6789834]
[1641418028818,40.78007941,156.43,156.38,4.6789834]
[1641418030535,7.51,156.42,156.38,4.6789834]
[1641418030736,9.5955,156.41,156.38,4.6789834]
[1641418030938,7.3765961,156.41,156.39,6.06439992]
[1641418031139,7.3765961,156.41,156.33,9.5951]
[1641418031140,2.18995641,156.38,156.33,9.5951]
[1641418031441,7.51,156.37,156.32,6.9e-06]
[1641418031742,9.5999,156.35,156.32,6.9e-06]
[1641418031938,7.51,156.34,156.32,6.9e-06]
[1641418032139,23.11734802,156.33,156.32,6.9e-06]
[1641418032340,7.77,156.34,156.32,6.9e-06]
[1641418032740,7.77,156.34,156.29,5.39679685]
[1641418032941,7.77,156.34,156.27,6.9e-06]